Workbook

Sheet COÛTS DE RÉNOVATION
B1: FEUILLE DE CALCUL COÛTS DE RÉNOVATION D’UNE CUISINE
B3: Catégorie | C3: Éléments | D3: Quantité | E3: Coût estimé | F3: Coût réel | G3: Coût estimé total | H3: Coût réel total
B4: Meubles de rangement | C4: Meubles bas : Modulaire-Standard (qté en mètres linéaires) | D4: 25 | E4: 5.00 € | G4: =Données[[#This Row],[Quantité]]*Données[[#This Row],[Coût estimé]] -> 125 € | H4: =Données[[#This Row],[Quantité]]*Données[[#This Row],[Coût réel]] -> 0 €
B5: Meubles de rangement | C5: Meubles hauts : Modulaire-Standard (qté en mètres linéaires) | D5: 25 | E5: 3.50 € | G5: =Données[[#This Row],[Quantité]]*Données[[#This Row],[Coût estimé]] -> 88 € | H5: =Données[[#This Row],[Quantité]]*Données[[#This Row],[Coût réel]] -> 0 €
B6: Appareils de nettoyage | C6: Lave-vaisselle : Standard | D6: 1 | E6: 250.00 € | G6: =Données[[#This Row],[Quantité]]*Données[[#This Row],[Coût estimé]] -> 250 € | H6: =Données[[#This Row],[Quantité]]*Données[[#This Row],[Coût réel]] -> 0 €
B7: Appareils de nettoyage | C7: Traitement des déchets : Standard | D7: 1 | E7: 175.00 € | G7: =Données[[#This Row],[Quantité]]*Données[[#This Row],[Coût estimé]] -> 175 € | H7: =Données[[#This Row],[Quantité]]*Données[[#This Row],[Coût réel]] -> 0 €
B8: Appareils de cuisine | C8: Cuisinière : Standard intégrée | D8: 1 | E8: 375.00 € | G8: =Données[[#This Row],[Quantité]]*Données[[#This Row],[Coût estimé]] -> 375 € | H8: =Données[[#This Row],[Quantité]]*Données[[#This Row],[Coût réel]] -> 0 €
B9: Appareils de cuisine | C9: Micro-ondes : Standard | D9: 1 | E9: 300.00 € | G9: =Données[[#This Row],[Quantité]]*Données[[#This Row],[Coût estimé]] -> 300 € | H9: =Données[[#This Row],[Quantité]]*Données[[#This Row],[Coût réel]] -> 0 €
B10: Plans de travail | C10: Surface unie (quantité en mètres linéaires) | D10: 23 | E10: 10.00 € | G10: =Données[[#This Row],[Quantité]]*Données[[#This Row],[Coût estimé]] -> 230 € | H10: =Données[[#This Row],[Quantité]]*Données[[#This Row],[Coût réel]] -> 0 €
B11: Portes | C11: Intérieur : Bois massif verni | D11: 1 | E11: 65.00 € | G11: =Données[[#This Row],[Quantité]]*Données[[#This Row],[Coût estimé]] -> 65 € | H11: =Données[[#This Row],[Quantité]]*Données[[#This Row],[Coût réel]] -> 0 €
B12: Options supplémentaires | C12: Options supplémentaires : Eau chaude instantanée standard | D12: 1 | E12: 120.00 € | G12: =Données[[#This Row],[Quantité]]*Données[[#This Row],[Coût estimé]] -> 120 € | H12: =Données[[#This Row],[Quantité]]*Données[[#This Row],[Coût réel]] -> 0 €
B13: Options supplémentaires | C13: Options supplémentaires : Distributeur de savon | D13: 1 | E13: 40.00 € | G13: =Données[[#This Row],[Quantité]]*Données[[#This Row],[Coût estimé]] -> 40 € | H13: =Données[[#This Row],[Quantité]]*Données[[#This Row],[Coût réel]] -> 0 €
B14: Robinets | C14: Robinet : Levier, standard | D14: 1 | E14: 130.00 € | G14: =Données[[#This Row],[Quantité]]*Données[[#This Row],[Coût estimé]] -> 130 € | H14: =Données[[#This Row],[Quantité]]*Données[[#This Row],[Coût réel]] -> 0 €
B15: Revêtement de sol | C15: Stratifié (quantité en mètres carrés) | D15: 165 | E15: 3.50 € | G15: =Données[[#This Row],[Quantité]]*Données[[#This Row],[Coût estimé]] -> 578 € | H15: =Données[[#This Row],[Quantité]]*Données[[#This Row],[Coût réel]] -> 0 €
B16: Appareils d’entretien du linge | C16: Machine à laver : Standard | D16: 1 | E16: 500.00 € | G16: =Données[[#This Row],[Quantité]]*Données[[#This Row],[Coût estimé]] -> 500 € | H16: =Données[[#This Row],[Quantité]]*Données[[#This Row],[Coût réel]] -> 0 €
B17: Appareils d’entretien du linge | C17: Sèche-linge : Standard | D17: 1 | E17: 375.00 € | G17: =Données[[#This Row],[Quantité]]*Données[[#This Row],[Coût estimé]] -> 375 € | H17: =Données[[#This Row],[Quantité]]*Données[[#This Row],[Coût réel]] -> 0 €
B18: Éclairage | C18: Éclairage : Spots encastrés | D18: 4 | E18: 35.00 € | G18: =Données[[#This Row],[Quantité]]*Données[[#This Row],[Coût estimé]] -> 140 € | H18: =Données[[#This Row],[Quantité]]*Données[[#This Row],[Coût réel]] -> 0 €
B19: Réfrigérateurs | C19: Réfrigérateur : Indépendant, luxe | D19: 1 | E19: 1,200.00 € | G19: =Données[[#This Row],[Quantité]]*Données[[#This Row],[Coût estimé]] -> 1,200 € | H19: =Données[[#This Row],[Quantité]]*Données[[#This Row],[Coût réel]] -> 0 €
B20: Éviers | C20: Double bac inox, luxe | D20: 1 | E20: 125.00 € | G20: =Données[[#This Row],[Quantité]]*Données[[#This Row],[Coût estimé]] -> 125 € | H20: =Données[[#This Row],[Quantité]]*Données[[#This Row],[Coût réel]] -> 0 €
B21: Ventilation | C21: Hotte : Conduit standard | D21: 1 | E21: 180.00 € | G21: =Données[[#This Row],[Quantité]]*Données[[#This Row],[Coût estimé]] -> 180 € | H21: =Données[[#This Row],[Quantité]]*Données[[#This Row],[Coût réel]] -> 0 €
B22: Murs | C22: Plaque de plâtre (quantité en mètres carrés) | D22: 70 | E22: 2.00 € | G22: =Données[[#This Row],[Quantité]]*Données[[#This Row],[Coût estimé]] -> 140 € | H22: =Données[[#This Row],[Quantité]]*Données[[#This Row],[Coût réel]] -> 0 €
B23: Fenêtres | C23: Coulissantes | D23: 2 | E23: 120.00 € | G23: =Données[[#This Row],[Quantité]]*Données[[#This Row],[Coût estimé]] -> 240 € | H23: =Données[[#This Row],[Quantité]]*Données[[#This Row],[Coût réel]] -> 0 €
B24: Autres | G24: =Données[[#This Row],[Quantité]]*Données[[#This Row],[Coût estimé]] -> 0 € | H24: =Données[[#This Row],[Quantité]]*Données[[#This Row],[Coût réel]] -> 0 €
B25: Total | E25: =SUBTOTAL(109,Données[Coût estimé]) -> 4,014.00 € | F25: =SUBTOTAL(109,Données[Coût réel]) -> 0.00 € | G25: =SUBTOTAL(109,Données[Coût estimé total]) -> 5,375.00 € | H25: =SUBTOTAL(109,Données[Coût réel total]) -> 0.00 €
B26: Sous-total | G26: =SUBTOTAL(109,Données[Coût estimé total]) -> 5,375.00 € | H26: =SUBTOTAL(109,Données[Coût réel total]) -> 0.00 €
B27: Coûts imprévus - ajouter 30 % | G27: =G26*0.3 -> 1,612.50 € | H27: =H26*0.3 -> 0.00 €
B28: Total | G28: =SUM(G26:G27) -> 6,987.50 € | H28: =SUM(H26:H27) -> 0.00 €
